bitfinex-derivatives/quotes_BTCF0:USTF0_20250626
["timestamp","ask_amount","ask_price","bid_price","bid_amount"]
[1750979901464,0.3208195,107010.0,107000.0,2.14112172]
[1750979902657,0.3208195,107010.0,107000.0,2.21469237]
[1750979903057,0.3178195,107010.0,107000.0,2.21469237]
[1750979904765,0.3178195,107010.0,107000.0,1.78966745]
[1750979904967,0.3497195,107010.0,107000.0,2.18303237]
[1750979905267,0.3597195,107010.0,107000.0,2.18303237]
[1750979906266,0.4230195,107010.0,107000.0,2.18303237]
[1750979908871,0.4230195,107010.0,107000.0,1.40803237]
[1750979909065,0.63553196,107010.0,107000.0,1.40803237]
[1750979909265,0.4230195,107010.0,107000.0,2.11915237]
[1750979909466,0.4230195,107010.0,107000.0,1.40803237]
[1750979909670,0.4230195,107010.0,107000.0,2.11915237]
[1750979916576,0.3597195,107010.0,107000.0,1.22119557]
[1750979916877,0.60223196,107010.0,107000.0,1.35888311]
[1750979917178,0.63473196,107010.0,107000.0,1.35888311]
[1750979918472,0.63473196,107010.0,107000.0,1.54572001]
[1750979919187,0.63473196,107010.0,107000.0,0.99808311]
[1750979919373,0.63473196,107010.0,107000.0,0.78557065]
[1750979919668,0.63473196,107010.0,107000.0,0.99808311]
[1750979921080,0.99553196,107010.0,107000.0,0.99808311]
[1750979922381,0.99553196,107010.0,107000.0,0.07457065]
[1750979922577,0.99553196,107010.0,107000.0,0.78557065]
[1750979923076,0.99553196,107010.0,107000.0,0.001]
[1750979923276,0.99553196,107010.0,107000.0,0.712]
[1750979923478,1.00507398,107010.0,107000.0,0.712]
[1750979925283,1.03172006,107010.0,107000.0,0.712]
[1750979926381,1.00507398,107010.0,107000.0,0.712]
[1750979926583,0.99553196,107010.0,107000.0,0.712]
[1750979928283,1.00468463,107010.0,107000.0,0.712]
[1750979929184,0.7830195,107010.0,107000.0,0.712]
[1750979929377,0.99553196,107010.0,107000.0,0.712]
[1750979929577,0.7830195,107010.0,107000.0,0.92451246]
[1750979929878,0.57223196,107010.0,107000.0,0.92451246]
[1750979930079,0.57223196,107010.0,107000.0,0.98721246]
[1750979930483,0.3597195,107010.0,107000.0,1.19972492]
[1750979930681,0.3278195,107010.0,107000.0,1.74736182]
[1750979930885,0.3278195,107010.0,107000.0,1.77796182]
[1750979934377,0.3278195,107010.0,107000.0,1.63585575]
[1750979943286,0.3278195,107010.0,107000.0,1.3529369]
[1750979943490,0.3278195,107010.0,107000.0,1.63585575]
[1750979956188,0.3278195,107010.0,107000.0,1.7772802]
[1750979957395,0.3278195,107010.0,107000.0,0.6419369]
[1750979957702,0.53999115,107010.0,107000.0,1.7460802]
[1750979957893,0.57199115,107010.0,107000.0,1.7460802]
[1750979958094,0.3598195,107010.0,107000.0,1.7460802]
[1750979959200,0.3598195,107010.0,107000.0,1.3217369]
[1750979959501,0.3598195,107010.0,107000.0,1.7160802]
[1750979960000,0.3598195,107010.0,107000.0,1.3227369]
[1750979960205,0.3598195,107010.0,107000.0,1.7470802]
[1750979962102,0.3598195,107010.0,107000.0,1.0366802]
[1750979962289,0.3598195,107010.0,107000.0,1.7470402]
[1750979965605,0.3598195,107010.0,107000.0,1.3862402]
[1750979965798,0.3598195,107010.0,107000.0,1.7470402]
[1750979966595,0.2298195,107010.0,107000.0,1.7470402]
[1750979975911,0.2298195,107010.0,107000.0,0.5813369]
[1750979976117,0.52599115,107010.0,107000.0,1.3550802]
[1750979976318,0.6746195,107010.0,107000.0,1.3550802]
[1750979976524,0.3138195,107010.0,107000.0,1.3550802]
[1750979976817,0.6746195,107010.0,107000.0,1.3550802]
[1750979979630,0.3138195,107010.0,107000.0,1.3550802]
[1750979979922,0.3138195,107010.0,107000.0,0.9307369]
[1750979980115,0.3138195,107010.0,107000.0,1.3550802]
[1750979980828,0.3138195,107010.0,107000.0,1.3858802]
[1750979981326,0.6746195,107010.0,107000.0,1.3858802]
[1750979983429,0.6439195,107010.0,107000.0,1.3858802]
[1750979983928,0.6106195,107010.0,107000.0,1.3858802]
[1750979984228,0.2498195,107010.0,107000.0,1.3858802]
[1750979985329,0.2498195,107010.0,107000.0,1.7466802]
[1750979988031,0.2498195,107010.0,107000.0,1.7793802]
[1750979990232,0.2498195,107010.0,107000.0,1.3550369]
[1750979990532,0.2498195,107010.0,107000.0,1.7793802]
[1750979995037,0.2498195,107010.0,107000.0,1.4185802]
[1750979995232,0.2498195,107010.0,107000.0,1.7793802]
[1750979996337,0.2498195,107010.0,107000.0,1.4185802]
[1750979996531,0.2498195,107010.0,107000.0,1.7793802]
[1750979997934,0.2498195,107010.0,107000.0,1.3550369]
[1750979998132,0.2498195,107010.0,107000.0,1.7793802]
[1750980002544,0.2498195,107010.0,107000.0,1.3550369]
[1750980002740,0.2498195,107010.0,107000.0,1.7793802]
[1750980009949,0.2498195,107010.0,107000.0,1.4185802]
[1750980024758,0.2498195,107010.0,107000.0,0.8435402]
[1750980024950,0.2498195,107010.0,107000.0,1.4179402]
[1750980025152,0.2498195,107010.0,106990.0,0.20861063]
[1750980025153,0.1868369,107000.0,106990.0,0.20861063]
[1750980025457,0.8445802,107000.0,106990.0,0.78297063]
[1750980025955,1.2053802,107000.0,106990.0,0.78297063]
[1750980026154,0.1868544,106990.0,106980.0,0.09341764]
[1750980026355,0.1868718,106980.0,106970.0,0.79731549]
[1750980026551,1.1954151,106980.0,106970.0,0.79731549]
[1750980026755,1.1954151,106980.0,106970.0,0.87883056]
[1750980027060,1.1954151,106980.0,106970.0,0.30447056]
[1750980027253,0.7710718,106980.0,106970.0,0.88838041]
[1750980027447,0.98324345,106980.0,106970.0,0.7960815]
[1750980027650,0.98324345,106980.0,106970.0,0.8266815]
[1750980027850,0.99324345,106980.0,106970.0,0.8266815]
[1750980028258,0.99424345,106980.0,106970.0,0.8296815]
[1750980028856,0.3597718,106980.0,106970.0,1.22874245]
[1750980029060,0.3278718,106980.0,106970.0,1.58954245]
[1750980029351,0.3278718,106980.0,106970.0,1.69607866]
[1750980029756,0.3278718,106980.0,106970.0,1.48390701]
[1750980030054,0.3278718,106980.0,106970.0,1.69607866]
[1750980030950,0.1978718,106980.0,106970.0,1.69607866]
[1750980031750,0.1978718,106980.0,106970.0,1.69707866]
[1750980035259,0.1978718,106980.0,106970.0,1.48490701]
[1750980038863,0.1978718,106980.0,106970.0,1.69707866]
[1750980040263,0.1978718,106980.0,106970.0,1.48490701]
[1750980045567,0.1978718,106980.0,106970.0,1.69707866]
[1750980047659,0.011,106980.0,106970.0,1.69707866]
[1750980047862,0.1978719,106980.0,106970.0,1.69707866]
[1750980057879,0.1978719,106980.0,106970.0,1.72937866]
[1750980058078,0.1978719,106980.0,106970.0,1.36857866]
[1750980058280,0.1978719,106980.0,106970.0,2.09017866]
[1750980064872,0.1978719,106980.0,106970.0,1.36857866]
[1750980065077,0.1978719,106980.0,106970.0,2.09017866]
[1750980066283,0.011,106980.0,106970.0,2.09017866]
[1750980066480,0.011,106980.0,106970.0,2.43300689]
[1750980066677,0.011,106980.0,106970.0,2.22083524]
[1750980067874,0.011,106980.0,106970.0,2.09017866]
[1750980074188,0.011,106980.0,106970.0,2.30235031]
[1750980075589,0.011,106980.0,106970.0,2.09017866]
[1750980077383,0.011,106980.0,106970.0,2.30235031]
[1750980078891,0.1868565,106990.0,106980.0,0.1868718]
[1750980079189,0.1868565,106990.0,106980.0,1.41144675]
[1750980080090,0.2209565,106990.0,106980.0,1.41144675]
[1750980080290,0.2209565,106990.0,106980.0,1.1992751]
[1750980081284,0.2209565,106990.0,106980.0,1.2002751]
[1750980081488,0.2219565,106990.0,106980.0,1.7118351]
[1750980081786,0.2634565,106990.0,106980.0,1.7118351]
[1750980081991,0.2944565,106990.0,106980.0,1.7118351]
[1750980082390,0.2944565,106990.0,106980.0,1.7148351]
[1750980082987,0.2944565,106990.0,106980.0,1.7128351]
[1750980084694,0.2944565,106990.0,106980.0,2.0736351]
[1750980088694,0.2944565,106990.0,106980.0,2.1047351]
[1750980094398,0.2944565,106990.0,106980.0,2.0736351]
[1750980096999,0.2944565,106990.0,106980.0,1.3520351]
[1750980097199,0.2944565,106990.0,106980.0,2.0736351]
[1750980099102,0.2944565,106990.0,106980.0,2.1058351]
[1750980099602,0.2319565,106990.0,106980.0,2.1058351]
[1750980105203,0.2319565,106990.0,106980.0,1.3842351]
[1750980105403,0.2319565,106990.0,106980.0,2.1058351]
[1750980105906,0.2319565,106990.0,106980.0,1.3842351]
[1750980106206,0.2319565,106990.0,106980.0,2.1058351]
[1750980114212,0.2319565,106990.0,106980.0,2.1390351]
[1750980119413,0.2319565,106990.0,106980.0,1.0067718]
[1750980119612,0.2319565,106990.0,106980.0,1.3979151]
[1750980119613,0.54412815,106990.0,106980.0,1.3979151]
[1750980119814,0.60912815,106990.0,106980.0,0.34821165]
[1750980120012,0.96992815,106990.0,106980.0,0.92121165]
[1750980120511,0.96992815,106990.0,106980.0,1.10808345]
[1750980121416,0.96992815,106990.0,106980.0,0.92121165]
[1750980122114,0.96992815,106990.0,106980.0,0.34821165]
[1750980122416,0.96992815,106990.0,106980.0,0.92117165]
[1750980126920,0.60912815,106990.0,106980.0,0.92117165]
[1750980127220,0.96992815,106990.0,106980.0,0.92117165]
[1750980138731,0.96992815,106990.0,106980.0,0.92101165]
[1750980139328,0.60912815,106990.0,106980.0,0.92101165]
[1750980139536,0.96992815,106990.0,106980.0,0.92101165]
[1750980140231,0.60912815,106990.0,106980.0,0.92101165]
[1750980140436,0.96992815,106990.0,106980.0,0.92101165]
[1750980141936,0.60912815,106990.0,106980.0,0.92101165]
[1750980142130,0.96992815,106990.0,106980.0,0.92101165]
[1750980144538,0.96992815,106990.0,106980.0,0.95401165]
[1750980145333,0.7577565,106990.0,106980.0,0.95401165]
[1750980145639,0.96992815,106990.0,106980.0,0.95401165]
[1750980146335,0.96992815,106990.0,106980.0,0.002]
[1750980146542,1.20869621,106990.0,106980.0,0.002]
[1750980146733,0.99652456,106990.0,106980.0,0.57468]
[1750980148240,0.99652456,106990.0,106980.0,0.78685165]
[1750980148434,0.99652456,106990.0,106980.0,0.81975165]
[1750980148638,0.93152456,106990.0,106980.0,0.81975165]
[1750980148841,0.93152456,106990.0,106980.0,0.85185165]
[1750980151437,0.93152456,106990.0,106980.0,0.88405165]
[1750980154246,0.89842456,106990.0,106980.0,0.88405165]
[1750980155750,0.32545291,106990.0,106980.0,1.6438951]
[1750980157956,0.2988565,106990.0,106980.0,1.6438951]
[1750980161854,0.112,106990.0,106980.0,1.30011728]
[1750980162057,0.012,106990.0,106980.0,2.00635728]
[1750980162258,0.012,106990.0,106980.0,1.79418563]
[1750980162558,0.1988543,106990.0,106980.0,1.79418563]
[1750980162851,0.1988543,106990.0,106980.0,2.00635728]
[1750980163059,0.012,106990.0,106980.0,1.79418563]
[1750980163253,0.012,106990.0,106980.0,2.00635728]
[1750980167657,0.012,106990.0,106980.0,2.09966704]
[1750980168159,0.3269508,107010.0,107000.0,0.1868369]
[1750980168459,0.41912477,107010.0,107000.0,1.6780602]
[1750980168753,0.3268195,107010.0,107000.0,2.1348602]
[1750980169360,0.3268195,107010.0,107000.0,2.15156844]
[1750980169659,0.3298195,107010.0,107000.0,2.15256844]
[1750980170358,0.3268195,107010.0,107000.0,2.15156844]
[1750980171655,0.3278195,107010.0,107000.0,2.15256844]
[1750980172559,0.3278195,107010.0,107000.0,2.36474009]
[1750980172560,0.141,107010.0,107000.0,2.36474009]
[1750980172764,0.3606973,107030.0,107020.0,0.186802]
[1750980173057,0.421197,107030.0,107020.0,1.69514207]
[1750980173263,0.421197,107030.0,107020.0,1.79344207]
[1750980174161,0.424197,107030.0,107020.0,1.79444207]
[1750980174358,0.424197,107030.0,107020.0,1.65291831]
[1750980174758,0.429197,107030.0,107020.0,1.65391831]
[1750980174952,0.429197,107030.0,107020.0,1.66320742]
[1750980176354,0.3824967,107030.0,107020.0,1.66320742]
[1750980176855,0.3357846,107030.0,107020.0,1.66320742]
[1750980177254,0.3357845,107030.0,107020.0,1.66320742]
[1750980177453,0.149,107030.0,107020.0,2.02400742]
[1750980178350,0.009,107030.0,107020.0,2.02400742]
[1750980180555,0.20191245,107050.0,107040.0,0.20378729]
[1750980180765,0.32191245,107050.0,107040.0,1.91380683]
[1750980181064,0.32191245,107050.0,107040.0,2.01010683]
[1750980181371,0.13516285,107050.0,107040.0,2.29292637]
[1750980181560,0.32191245,107050.0,107040.0,2.01010683]
[1750980181759,0.13516285,107050.0,107040.0,2.01010683]
[1750980182453,0.001,107060.0,107050.0,0.1867496]
[1750980182660,0.061,107060.0,107050.0,0.89356914]
[1750980182863,0.071,107060.0,107050.0,0.89356914]
[1750980183653,0.073,107060.0,107050.0,0.89356914]
[1750980184263,0.073,107060.0,107050.0,0.6107496]
[1750980184463,0.073,107060.0,107050.0,0.89356914]
[1750980184661,0.2597322,107060.0,107050.0,0.89356914]
[1750980185664,0.2597322,107060.0,107050.0,0.96976662]
[1750980187166,0.2577322,107060.0,107050.0,0.96976662]
[1750980187367,0.2587322,107060.0,107050.0,0.96976662]
[1750980187666,0.072,107060.0,107050.0,0.96976662]
[1750980188263,0.012,107060.0,107050.0,0.96976662]
[1750980188459,0.012,107060.0,107050.0,1.67552662]
[1750980190362,0.012,107060.0,107050.0,1.67752662]
[1750980192869,0.012,107060.0,107050.0,2.03832662]
[1750980197368,0.1987322,107060.0,107050.0,1.33256662]
[1750980197665,0.012,107060.0,107050.0,2.03784662]
[1750980197971,0.2313322,107060.0,107050.0,2.03784662]
[1750980198270,0.0446,107060.0,107050.0,2.03784662]
[1750980198768,0.012,107060.0,107050.0,2.03784662]
[1750980212975,0.013,107060.0,107050.0,2.03984662]
[1750980213782,0.012,107060.0,107050.0,2.03984662]
[1750980213976,0.012,107060.0,107050.0,2.04084662]
[1750980214286,0.012,107060.0,107050.0,2.18184392]
[1750980217288,0.012,107060.0,107050.0,1.46024392]
[1750980217586,0.02774389,107070.0,107060.0,0.1867322]
[1750980217787,0.2497998,107080.0,107070.0,0.1867148]
[1750980217987,0.39699361,107080.0,107070.0,2.54891164]
[1750980218993,0.39799361,107080.0,107070.0,2.55391164]
[1750980219587,0.39799361,107080.0,107070.0,2.55591164]
[1750980220088,0.39799361,107080.0,107070.0,2.56507162]
[1750980220287,0.39799361,107080.0,107070.0,2.42376106]
[1750980220986,0.42919361,107080.0,107070.0,1.92263998]
[1750980221192,1.07749989,107080.0,107070.0,1.55268]
[1750980221488,0.42919361,107080.0,107070.0,2.38270108]
[1750980222492,0.42919361,107080.0,107070.0,2.38278108]
[1750980222790,0.42919361,107080.0,107070.0,1.67762108]
[1750980222993,0.42919361,107080.0,107070.0,2.38274108]
[1750980223384,0.4019998,107080.0,107070.0,2.38274108]
[1750980223891,0.4019998,107080.0,107070.0,2.44554108]
[1750980224191,0.1522,107080.0,107070.0,2.44554108]
[1750980224388,0.3388973,107080.0,107070.0,2.44554108]
[1750980225193,0.3388973,107080.0,107070.0,2.4549632]
[1750980225594,0.3703973,107080.0,107070.0,2.4549632]
[1750980226589,0.4031973,107080.0,107070.0,2.4549632]
[1750980232299,0.3716973,107080.0,107070.0,2.4549632]
[1750980234797,0.3388973,107080.0,107070.0,2.4549632]
[1750980234987,0.3388973,107080.0,107070.0,2.4868632]
[1750980235191,0.1522,107080.0,107070.0,2.4868632]
[1750980235389,0.3388972,107080.0,107070.0,2.4868632]
[1750980235596,0.121,107080.0,107070.0,2.4868632]
[1750980235799,0.001,107080.0,107070.0,2.4868632]
[1750980242403,0.001,107080.0,107070.0,2.6280704]
[1750980251104,0.001,107080.0,107070.0,2.41621366]
[1750980251306,0.001,107080.0,107070.0,2.6280704]
[1750980252501,0.1876973,107080.0,107070.0,2.6280704]
[1750980255116,0.001,107080.0,107070.0,2.6280704]
[1750980266421,0.001,107080.0,107070.0,2.75872698]
[1750980268515,0.001,107090.0,107080.0,0.1866972]
[1750980268722,0.071,107090.0,107080.0,1.55477026]
[1750980268914,0.076,107090.0,107080.0,1.55477026]
[1750980269726,0.076,107090.0,107080.0,1.55577026]
[1750980273629,0.006,107090.0,107080.0,1.55577026]
[1750980277831,0.0323,107100.0,107090.0,0.1866799]
[1750980278034,0.16205025,107100.0,107090.0,1.73809338]
[1750980278328,0.17205025,107100.0,107090.0,1.73809338]
[1750980278830,0.17205025,107100.0,107090.0,1.83144228]
[1750980279035,0.17205025,107100.0,107090.0,1.86404228]
[1750980279629,0.17305025,107100.0,107090.0,1.86404228]
[1750980282335,0.35971275,107100.0,107090.0,1.86404228]
[1750980282840,0.17305025,107100.0,107090.0,1.86404228]
[1750980285138,0.17305025,107100.0,107090.0,1.83144228]
[1750980285334,0.141,107100.0,107090.0,1.86404228]
[1750980285837,0.011,107100.0,107090.0,1.98255012]
[1750980286036,0.011,107100.0,107090.0,2.07589902]
[1750980286336,0.011,107100.0,107090.0,1.86404228]
[1750980286538,0.01,107100.0,107090.0,1.86404228]
[1750980287932,0.01,107100.0,107090.0,1.83136228]
[1750980288127,0.2397624,107100.0,107090.0,0.91678554]
[1750980288334,0.51631914,107100.0,107090.0,0.76133664]
[1750980288629,0.51631914,107100.0,107090.0,1.10525664]
[1750980288835,0.51631914,107100.0,107090.0,0.21385674]
[1750980289035,0.51631914,107100.0,107090.0,0.91853674]
[1750980289538,0.51631914,107100.0,107090.0,1.10521664]
[1750980289837,0.51731914,107100.0,107090.0,1.10321664]
[1750980290236,0.3054624,107100.0,107090.0,0.8913599]
[1750980290442,0.6662624,107100.0,107090.0,0.8913599]
[1750980294448,0.1866799,107090.0,107080.0,1.24510011]
[1750980294650,0.3121799,107090.0,107080.0,1.94953036]
[1750980295355,0.3121799,107090.0,107080.0,1.90285676]
[1750980295850,0.3121799,107090.0,107080.0,1.90485676]
[1750980296554,0.3121799,107090.0,107080.0,1.20017676]
[1750980296850,0.3121799,107090.0,107080.0,1.90481676]
[1750980298457,0.3121799,107090.0,107080.0,1.96811676]
[1750980302562,0.2801799,107090.0,107080.0,1.96811676]
[1750980303858,0.2801799,107090.0,107080.0,1.17012786]
[1750980304064,0.2801799,107090.0,107080.0,1.96811676]
[1750980304266,0.2468799,107090.0,107080.0,1.96811676]
[1750980304756,0.2468799,107090.0,107080.0,1.87476786]
[1750980306063,0.2468799,107090.0,107080.0,1.96811676]
[1750980307259,0.2468799,107090.0,107080.0,1.87476786]
[1750980309666,0.2468799,107090.0,107080.0,1.30340786]
[1750980309963,0.2468799,107090.0,107080.0,1.87472786]
[1750980310357,0.2468799,107090.0,107080.0,2.01597497]
[1750980311262,0.2568799,107090.0,107080.0,2.01597497]
[1750980313168,0.2568799,107090.0,107080.0,2.10932387]
[1750980315167,0.2568799,107090.0,107080.0,1.74852387]
[1750980315468,0.2568799,107090.0,107080.0,2.10932387]
[1750980316069,0.2568799,107090.0,107080.0,1.74852387]
[1750980316365,0.2568799,107090.0,107080.0,2.10932387]
[1750980318665,0.2568799,107090.0,107080.0,0.17543202]
[1750980318666,0.48393507,107090.0,107080.0,0.17543202]
[1750980318966,0.48393507,107090.0,107080.0,1.12187346]
[1750980319166,0.27206193,107090.0,107080.0,1.3337466]
[1750980319365,0.27206193,107090.0,107080.0,1.4294466]
[1750980319870,0.27306193,107090.0,107080.0,1.4274466]
[1750980320068,0.48493507,107090.0,107080.0,1.4274466]
[1750980320270,0.2578799,107090.0,107080.0,1.4274466]
[1750980320465,0.46975304,107090.0,107080.0,1.4274466]
[1750980320666,0.46875304,107090.0,107080.0,1.4294466]
[1750980322573,0.2568799,107090.0,107080.0,1.4294466]
[1750980323978,0.2568799,107090.0,107080.0,1.00570032]
[1750980324275,0.46875304,107090.0,107080.0,1.2427494]
[1750980324877,0.46875304,107090.0,107080.0,0.81900312]
[1750980325079,0.46875304,107090.0,107080.0,1.2427494]
[1750980325474,0.46875304,107090.0,107080.0,0.99997626]
[1750980325978,0.46975304,107090.0,107080.0,0.99997626]
[1750980326176,0.46975304,107090.0,107080.0,0.99797626]
[1750980326677,0.46875304,107090.0,107080.0,0.99997626]
[1750980329279,0.2568799,107090.0,107080.0,0.99997626]
[1750980329474,0.46875304,107090.0,107080.0,1.3985466]
[1750980330073,0.46875304,107090.0,107080.0,0.78810312]
[1750980330278,0.46875304,107090.0,107080.0,1.2118494]
[1750980331179,0.2568799,107090.0,107080.0,1.2098494]
[1750980331374,0.46875304,107090.0,107080.0,1.3965465]
[1750980332067,0.46975304,107090.0,107080.0,0.99797626]
[1750980332279,0.50165304,107090.0,107080.0,0.99797626]
[1750980332477,0.53475304,107090.0,107080.0,0.99797626]
[1750980332879,0.89455304,107090.0,107080.0,0.1352]
[1750980333068,1.10642618,107090.0,107080.0,0.1352]
[1750980333273,1.10642618,107090.0,107080.0,0.70644]
[1750980333480,1.13258332,107090.0,107080.0,0.70644]
[1750980334080,1.13258332,107090.0,107080.0,0.002]
[1750980334081,1.38258332,107090.0,107080.0,0.002]
[1750980334282,1.38258332,107090.0,107080.0,0.57124]
[1750980335173,0.1866972,107080.0,107070.0,0.21187314]
[1750980335372,1.20714348,107080.0,107070.0,0.705]
[1750980336278,1.06609448,107080.0,107070.0,0.705]
[1750980336482,1.06609448,107080.0,107070.0,0.707]
[1750980336779,1.06609448,107080.0,107070.0,0.7072]
[1750980337682,1.09219846,107080.0,107070.0,0.7072]
[1750980337981,1.09219846,107080.0,107070.0,0.1352]
[1750980338282,1.06609448,107080.0,107070.0,0.1352]
[1750980338682,1.42689448,107080.0,107070.0,0.1352]
[1750980340886,1.0795972,107080.0,107070.0,0.1352]
[1750980341086,1.0795972,107080.0,107070.0,0.1679]
[1750980341281,1.0805972,107080.0,107070.0,0.1679]
[1750980342586,1.36329448,107080.0,107070.0,0.1659]
[1750980342988,1.39629448,107080.0,107070.0,0.1659]
[1750980343977,1.39629448,107080.0,107070.0,0.1963]
[1750980347892,0.67469448,107080.0,107070.0,0.1963]
[1750980348088,1.03549448,107080.0,107070.0,0.1963]
[1750980349298,0.67469448,107080.0,107070.0,0.1963]
[1750980349595,1.03549448,107080.0,107070.0,0.1963]
[1750980352797,1.03549448,107080.0,107070.0,0.7677]
[1750980353092,1.06599448,107080.0,107070.0,0.7677]
[1750980353294,1.06599448,107080.0,107070.0,0.1963]
[1750980353497,1.06599448,107080.0,107070.0,0.1332]
[1750980354898,1.42679448,107080.0,107070.0,0.1332]
[1750980356003,0.70519448,107080.0,107070.0,0.1332]
[1750980356202,1.42679448,107080.0,107070.0,0.1332]
[1750980357905,1.43679448,107080.0,107070.0,0.1332]
[1750980358099,1.46273992,107080.0,107070.0,0.1332]
[1750980358302,1.60409026,107080.0,107070.0,0.1332]
[1750980368107,0.88249026,107080.0,107070.0,0.1332]
[1750980368308,1.60409026,107080.0,107070.0,0.1332]
[1750980371309,1.18004264,107080.0,107070.0,0.1332]
[1750980371515,1.60409026,107080.0,107070.0,0.1332]
[1750980376210,1.60409026,107080.0,107070.0,0.1641]
[1750980377314,0.88249026,107080.0,107070.0,0.1641]
[1750980377814,1.60409026,107080.0,107070.0,0.1641]
[1750980384232,1.54059026,107080.0,107070.0,0.1941]
[1750980385125,0.81899026,107080.0,107070.0,0.1941]
[1750980385327,1.54059026,107080.0,107070.0,0.1941]
[1750980385929,1.54059026,107080.0,107070.0,0.0609]
[1750980386329,0.81899026,107080.0,107070.0,0.0609]
[1750980386529,1.54059026,107080.0,107070.0,0.0609]
[1750980388632,0.81899026,107080.0,107070.0,0.0609]
[1750980388826,1.54059026,107080.0,107070.0,0.0609]
[1750980389324,0.81899026,107080.0,107070.0,0.0609]
[1750980389531,1.54059026,107080.0,107070.0,0.0609]
[1750980389827,0.36364264,107080.0,107070.0,0.27292381]
[1750980390028,0.57566645,107080.0,107070.0,0.30612381]
[1750980391027,0.93546645,107080.0,107070.0,0.30612381]
[1750980392023,0.93546645,107080.0,107070.0,0.30812381]
[1750980392524,0.36264264,107080.0,107070.0,0.88094762]
[1750980392725,0.3366972,107080.0,107070.0,1.06766222]
[1750980393119,0.3366972,107080.0,107070.0,0.85563841]
[1750980395631,0.3366972,107080.0,107070.0,1.06766222]
[1750980396535,0.3366972,107080.0,107070.0,0.85563841]
[1750980397229,0.3366972,107080.0,107070.0,0.49483841]
[1750980397532,0.3366972,107080.0,107070.0,0.85563841]
[1750980405639,0.54872101,107080.0,107070.0,0.85563841]
[1750980407742,0.3366972,107080.0,107070.0,0.85563841]
[1750980417052,0.3366972,107080.0,107070.0,1.06766222]
[1750980417554,0.3366972,107080.0,107070.0,0.6436146]
[1750980417746,0.3366972,107080.0,107070.0,1.06766222]
[1750980418158,0.3366972,107080.0,107070.0,1.16101112]
[1750980420449,0.3366972,107080.0,107070.0,1.06766222]
[1750980422656,0.3366972,107080.0,107070.0,1.08481516]
[1750980423259,0.3366972,107080.0,107070.0,1.17816406]
[1750980428560,0.15,107080.0,107070.0,1.17816406]
[1750980428957,0.01,107080.0,107070.0,1.17816406]
[1750980429364,0.1866798,107090.0,107080.0,0.3266945]
[1750980429562,0.2466798,107090.0,107080.0,1.97369102]
[1750980429866,0.2466798,107090.0,107080.0,2.00429102]
[1750980430462,0.2476798,107090.0,107080.0,2.00429102]
[1750980431664,0.2466798,107090.0,107080.0,2.00429102]
[1750980432367,0.2466798,107090.0,107080.0,1.91094212]
[1750980432868,0.2466798,107090.0,107080.0,1.91494212]
[1750980433368,0.2466798,107090.0,107080.0,1.91694212]
[1750980433868,0.2466798,107090.0,107080.0,1.4928945]
[1750980434071,0.2466798,107090.0,107080.0,1.91694212]
[1750980435968,0.2466798,107090.0,107080.0,1.55614212]
[1750980436170,0.2466798,107090.0,107080.0,2.27774212]
[1750980438666,0.2466798,107090.0,107080.0,1.55614212]
[1750980438871,0.2791798,107090.0,107080.0,2.27774212]
[1750980442070,0.2791798,107090.0,107080.0,1.49446922]
[1750980442265,0.49120361,107090.0,107080.0,1.30597411]
[1750980442465,0.55570361,107090.0,107080.0,1.87657411]
[1750980442667,0.55570361,107090.0,107080.0,2.08859792]
[1750980442967,0.55570361,107090.0,107080.0,2.18194682]
[1750980443270,0.3436798,107090.0,107080.0,2.18194682]
[1750980443872,0.3436798,107090.0,107080.0,2.17994682]
[1750980444062,0.3456798,107090.0,107080.0,2.17794682]
[1750980446072,0.3456798,107090.0,107080.0,1.47434682]
[1750980446379,0.3456798,107090.0,107080.0,2.17794682]
[1750980446873,0.3456798,107090.0,107080.0,1.47434682]
[1750980447064,0.3456798,107090.0,107080.0,2.17790682]
[1750980448180,0.3456798,107090.0,107080.0,1.81710682]
[1750980452773,0.3456798,107090.0,107080.0,1.84970682]
[1750980453273,0.55770361,107090.0,107080.0,1.84970682]
[1750980453475,0.3456798,107090.0,107080.0,1.84970682]
[1750980454476,0.3456798,107090.0,107080.0,1.88260682]
[1750980459482,0.3456798,107090.0,107080.0,1.88248682]
[1750980460682,0.3137798,107090.0,107080.0,1.88248682]
[1750980461687,0.2811798,107090.0,107080.0,1.88248682]
[1750980465090,0.2811798,107090.0,107080.0,1.52168682]
[1750980465384,0.2811798,107090.0,107080.0,1.88248682]
[1750980470595,0.2811798,107090.0,107080.0,1.4584392]
[1750980470798,0.2811798,107090.0,107080.0,1.88248682]
[1750980470992,0.49320361,107090.0,107080.0,1.88248682]
[1750980472994,0.2811798,107090.0,107080.0,1.88248682]
[1750980473193,0.2811798,107090.0,107080.0,1.91418682]
[1750980477300,0.2811798,107090.0,107080.0,1.82083792]
[1750980479609,0.2811798,107090.0,107080.0,1.91418682]
[1750980480308,0.2811798,107090.0,107080.0,1.55338682]
[1750980480605,0.2811798,107090.0,107080.0,1.91418682]
[1750980482709,0.2486798,107090.0,107080.0,1.91418682]
[1750980502528,0.2486798,107090.0,107080.0,1.93112959]
[1750980503529,0.2486798,107090.0,107080.0,1.93094677]
[1750980506026,0.2486798,107090.0,107080.0,1.91418682]
[1750980506230,0.2486798,107090.0,107080.0,1.93090201]
[1750980506932,0.2486798,107090.0,107080.0,1.57021631]
[1750980507124,0.2486798,107090.0,107080.0,1.93101631]
[1750980510630,0.2486798,107090.0,107080.0,1.57021631]
[1750980510932,0.2486798,107090.0,107080.0,1.93101631]
[1750980522754,0.2486798,107090.0,107080.0,1.50696869]
[1750980523052,0.2486798,107090.0,107080.0,1.93101631]
[1750980523753,0.2486798,107090.0,107080.0,1.50696869]
[1750980523955,0.2486798,107090.0,107080.0,1.93101631]
[1750980529253,0.2486798,107090.0,107080.0,1.50696869]
[1750980529455,0.2486798,107090.0,107080.0,1.93101631]
[1750980534558,0.2486798,107090.0,107080.0,1.83381631]
[1750980535259,0.2486798,107090.0,107080.0,1.40976869]
[1750980535557,0.2486798,107090.0,107080.0,1.89751631]
[1750980535764,0.2486798,107090.0,107080.0,1.50516869]
[1750980536059,0.2486798,107090.0,107080.0,1.92921631]
[1750980537564,0.2486798,107090.0,107080.0,1.50516869]
[1750980537862,0.2486798,107090.0,107080.0,1.92921631]
[1750980540165,0.2486798,107090.0,107080.0,1.56841631]
[1750980540462,0.2486798,107090.0,107080.0,1.92825631]
[1750980543065,0.2799798,107090.0,107080.0,1.92825631]
[1750980543567,0.2799798,107090.0,107080.0,1.50420869]
[1750980543765,0.2799798,107090.0,107080.0,1.92825631]
[1750980548972,0.2486798,107090.0,107080.0,1.83285631]
[1750980549769,0.2486798,107090.0,107080.0,1.40880869]
[1750980549967,0.2486798,107090.0,107080.0,1.89575631]
[1750980550266,0.2801798,107090.0,107080.0,1.89575631]
[1750980551672,0.55730361,107090.0,107080.0,0.72054949]